bitfinex/quotes_ETHUSD_20241225
["timestamp","ask_amount","ask_price","bid_price","bid_amount"]
[1735145377447,5.26669096,3451.4,3450.0,0.8274]
[1735145377448,0.55,3451.1,3450.0,0.8274]
[1735145377645,2.89791,3450.8,3450.0,0.8274]
[1735145377854,0.55,3450.7,3450.0,0.8274]
[1735145378066,3.44799,3450.7,3450.0,0.8274]
[1735145378511,3.0,3450.6,3450.0,0.8274]
[1735145378712,0.55,3450.5,3450.0,0.8274]
[1735145379151,0.55,3450.7,3450.0,0.8274]
[1735145379520,2.89813,3450.6,3450.0,0.8274]
[1735145379908,0.55,3450.7,3450.0,0.8274]
[1735145380105,0.55,3450.4,3450.0,0.8274]
[1735145380348,3.44797,3450.7,3450.0,0.8274]
[1735145380715,0.55,3450.5,3450.0,0.8274]
[1735145383684,2.8974,3451.4,3450.0,0.7915]
[1735145383837,2.01742388,3451.5,3450.2,0.7915]
[1735145384037,2.01742388,3451.5,3450.3,0.7915]
[1735145384574,1.19162388,3451.5,3450.3,0.7915]
[1735145384777,1.19162388,3451.5,3450.5,0.7915]
[1735145385153,2.89713,3451.7,3450.5,0.7915]
[1735145385756,0.55,3451.6,3450.7,0.8324]
[1735145385938,2.89713,3451.7,3450.7,0.8324]
[1735145385939,0.55,3451.7,3450.7,0.8324]
[1735145386144,0.55,3451.2,3450.7,0.8324]
[1735145386503,0.55,3450.9,3450.4,0.8324]
[1735145387394,0.55,3450.9,3450.6,0.5857823]
[1735145387545,0.55,3451.1,3450.6,0.5857823]
[1735145387751,0.55,3451.3,3450.6,0.5857823]
[1735145388980,0.55,3451.2,3450.6,0.5857823]
[1735145389565,0.55,3451.0,3450.6,0.5857823]
[1735145390467,0.55,3451.2,3450.6,0.5857823]
[1735145390904,2.36927096,3451.6,3450.6,0.5857823]
[1735145390905,3.55,3451.5,3450.6,0.5857823]
[1735145391194,0.55,3451.1,3450.6,0.5857823]
[1735145392101,0.55,3451.5,3450.6,0.5857823]
[1735145393292,0.55,3451.3,3450.6,0.5857823]
[1735145393502,0.55,3451.2,3450.6,0.5857823]
[1735145393656,3.44759,3451.2,3450.6,0.5857823]
[1735145393853,0.55,3451.5,3450.6,0.5857823]
[1735145394095,0.55,3451.0,3450.6,0.5857823]
[1735145395103,3.44773,3451.0,3450.6,0.5857823]
[1735145396413,0.55,3451.1,3450.6,0.5857823]
[1735145397077,0.55,3451.3,3450.6,0.5857823]
[1735145397595,2.89715,3451.7,3450.7,0.7985]
[1735145398200,1.19162388,3451.8,3450.7,0.7985]
[1735145399104,2.89688,3452.0,3450.7,0.7985]
[1735145399509,0.55,3451.9,3450.7,0.7985]
[1735145399663,2.89688,3452.0,3450.7,0.7985]
[1735145400096,2.89688,3452.0,3450.7,0.82746962]
[1735145400391,1.19162388,3452.3,3451.2,0.7985]
[1735145400592,1.19162388,3452.3,3451.4,0.7985]
[1735145400802,1.19162388,3452.3,3451.6,0.7985]
[1735145401006,1.19162388,3452.4,3451.6,1.36792413]
[1735145401224,1.19162388,3452.4,3451.1,0.7985]
[1735145401225,2.89697,3451.9,3451.1,0.7985]
[1735145401519,3.56089484,3452.4,3451.2,1.26185]
[1735145401726,2.89661,3452.3,3451.1,0.7985]
[1735145401938,2.89754,3451.2,3450.3,0.7985]
[1735145402230,0.55,3450.9,3450.3,0.7985]
[1735145402379,0.55,3451.2,3450.3,0.7985]
[1735145402579,0.55,3451.2,3450.4,0.20109613]
[1735145402884,2.89772,3451.0,3450.6,1.21246126]
[1735145403217,0.55,3450.9,3450.6,1.21246126]
[1735145403427,0.55,3450.9,3450.6,1.85802844]
[1735145403635,3.4478,3450.9,3450.6,1.85802844]
[1735145403991,0.55,3451.1,3450.7,0.7985]
[1735145404188,0.55,3451.3,3450.7,0.7985]
[1735145404389,0.55,3451.6,3450.8,0.44752203]
[1735145404594,1.19162388,3451.7,3450.5,0.8274735]
[1735145405220,1.19162388,3451.7,3450.7,0.7665]
[1735145405933,2.89681,3452.1,3450.7,3.7665]
[1735145406105,3.56089484,3452.4,3450.8,3.61278631]
[1735145406430,2.89695,3451.9,3450.9,0.7665]
[1735145406730,2.89704,3451.8,3450.9,0.7665]
[1735145406932,0.55,3451.6,3450.9,0.7665]
[1735145407138,0.55,3451.6,3451.0,0.66127863]
[1735145407429,0.55,3451.6,3450.9,1.76986501]
[1735145408454,0.55,3451.6,3451.1,0.56822433]
[1735145409448,0.55,3451.6,3450.9,0.7665]
[1735145409653,0.55,3451.1,3450.8,0.56723803]
[1735145409817,0.55,3451.1,3450.6,2.25181532]
[1735145410152,0.55,3451.3,3450.6,5.25181532]
[1735145411459,0.55,3451.3,3450.7,3.58998093]
[1735145411660,0.55,3451.3,3450.8,1.00542575]
[1735145412954,0.55,3451.6,3450.7,0.58998093]
[1735145413173,0.55,3450.7,3450.3,1.97916126]
[1735145414468,0.55,3450.4,3450.3,0.7667]
[1735145415274,0.55,3450.6,3450.3,0.7667]
[1735145415622,3.72885,3451.0,3450.3,0.7667]
[1735145415623,0.55,3450.9,3450.3,0.7667]
[1735145417931,0.55,3451.1,3450.3,0.7667]
[1735145418395,2.89763,3451.1,3450.3,0.7667]
[1735145418685,0.55,3451.0,3450.3,0.7667]
[1735145418888,0.55,3451.2,3450.3,0.7667]
[1735145419035,0.55,3451.2,3450.4,0.79567711]
[1735145419722,0.55,3451.2,3450.4,0.7667]
[1735145419892,2.89737,3451.4,3450.4,0.7667]
[1735145420186,3.4478,3450.9,3450.4,1.14337]
[1735145420384,3.4478,3450.9,3450.4,0.7667]
[1735145420681,3.4478,3450.9,3450.5,0.58791782]
[1735145421046,0.55,3450.9,3450.5,0.58791782]
[1735145421237,0.55,3451.0,3450.5,0.58791782]
[1735145423055,1.19162388,3451.6,3450.6,0.7667]
[1735145423257,1.19162388,3451.6,3450.7,0.7667]
[1735145423511,1.19162388,3451.6,3451.1,3.0]
[1735145423637,1.19162388,3451.7,3451.2,0.7667]
[1735145424587,1.19162388,3451.7,3451.4,2.36927096]
[1735145424899,1.19162388,3452.8,3451.5,3.0]
[1735145425187,1.19162388,3452.8,3451.7,0.7777]
[1735145425335,1.19162388,3452.8,3451.8,0.7777]
[1735145425991,4.08784388,3452.8,3451.8,0.7777]
[1735145426402,2.89622,3452.8,3451.8,0.7777]
[1735145426533,2.89622,3452.8,3451.9,0.94693898]
[1735145426999,0.55,3452.7,3451.9,0.94693898]
[1735145427498,0.55,3452.7,3452.0,0.02896315]
[1735145427641,0.55,3452.7,3451.9,0.94693898]
[1735145427838,0.55,3452.9,3451.9,0.94693898]
[1735145428078,0.55,3452.9,3452.0,0.53454661]
[1735145428438,0.55,3452.9,3452.1,0.7777]
[1735145428656,0.55,3453.1,3452.1,0.7777]
[1735145428876,0.55,3452.9,3452.1,0.7777]
[1735145429181,2.89645,3452.5,3452.1,0.7777]
[1735145429372,0.55,3453.3,3452.1,0.7777]
[1735145429567,0.55,3452.5,3452.1,0.7777]
[1735145430303,0.55,3452.7,3452.1,0.7777]
[1735145430598,2.89605,3453.0,3452.1,0.7777]
[1735145430763,0.55,3452.9,3452.1,0.7777]
[1735145432260,0.55,3452.9,3452.3,0.7777]
[1735145432461,0.55,3452.9,3452.4,0.02896109]
[1735145432758,2.89578,3453.3,3452.3,0.7777]
[1735145434104,0.55,3453.2,3452.3,0.7777]
[1735145435401,3.44587,3453.2,3452.3,0.7777]
[1735145435728,2.89631,3452.7,3452.3,0.7777]
[1735145435907,2.89578,3453.3,3452.3,0.7777]
[1735145436109,0.55,3452.8,3452.3,0.7777]
[1735145437229,0.55,3452.8,3452.3,0.96789725]
[1735145437792,3.4462,3452.8,3452.3,0.96789725]
[1735145438006,2.8963,3452.7,3452.3,0.96789725]
[1735145438613,2.89638,3452.6,3452.3,0.7777]
[1735145446264,2.89647,3452.5,3452.3,0.7777]
[1735145447950,2.89647,3452.5,3452.1,0.58972588]
[1735145453359,0.55,3452.6,3451.5,0.8299]
[1735145453659,2.89678,3452.1,3451.6,0.58272022]
[1735145453872,2.89678,3452.1,3451.7,1.18858335]
[1735145457230,3.4464,3452.6,3451.8,0.8299]
[1735145457231,0.55,3452.6,3451.8,0.8299]
[1735145457460,2.89638,3452.6,3451.8,0.8299]
[1735145457660,2.89638,3452.6,3451.9,0.26012036]
[1735145459578,0.55,3452.9,3451.9,0.26012036]
[1735145459763,2.89645,3452.5,3451.9,0.26012036]
[1735145460700,2.89688,3452.0,3451.7,1.18858335]
[1735145460866,0.55,3452.2,3451.6,0.58272022]
[1735145461067,2.89712,3451.8,3451.5,0.8299]
[1735145461410,3.44729,3451.5,3451.4,7.47321326]
[1735145461566,0.8289,3451.7,3451.2,1.21246126]
[1735145461764,2.89655,3452.4,3451.4,3.19917096]
[1735145461968,0.55,3452.5,3451.5,0.8299]
[1735145462221,0.55,3452.5,3451.4,2.39823724]
[1735145462222,2.89654,3452.4,3451.7,0.8299]
[1735145462521,3.44637,3452.6,3451.7,0.8299]
[1735145462899,0.55,3452.8,3451.7,0.8299]
[1735145463210,0.55,3452.4,3451.8,0.38299]
[1735145464304,0.55,3452.4,3451.8,0.96706582]
[1735145465427,3.44655,3452.4,3451.8,0.96706582]
[1735145468529,2.89637,3452.6,3451.8,0.96706582]
[1735145468827,0.55,3452.8,3451.9,0.7931]
[1735145469030,0.55,3452.6,3452.0,0.17601658]
[1735145470102,0.55,3452.6,3452.1,1.00512786]
[1735145471163,0.55,3452.6,3452.2,1.00512786]
[1735145471427,4.08759388,3453.1,3452.3,0.82206454]
[1735145471634,0.55,3453.0,3452.3,0.82206454]
[1735145471836,0.55,3453.0,3452.4,0.45473455]
[1735145472193,1.19162388,3453.1,3452.4,0.45473455]
[1735145472427,1.19162388,3453.1,3452.5,0.7931]
[1735145472960,4.08741388,3453.3,3452.5,3.7931]
[1735145473257,1.19162388,3453.3,3452.6,0.7931]
[1735145473460,1.19162388,3453.3,3452.8,0.7931]
[1735145474559,2.89538,3453.8,3452.8,2.00556126]
[1735145474722,2.89538,3453.8,3452.8,2.03451746]
[1735145475059,0.55,3453.7,3452.8,5.03451746]
[1735145475278,0.55,3453.6,3452.9,1.44216211]
[1735145475419,3.44553,3453.6,3452.9,1.44216211]
[1735145476057,3.44553,3453.6,3452.9,5.16744302]
[1735145476963,0.55,3453.7,3452.9,5.16744302]
[1735145477163,0.55,3453.9,3453.0,0.7931]
[1735145477320,1.19162388,3454.1,3453.2,0.7931]
[1735145477520,1.19162388,3454.1,3453.4,2.36927096]
[1735145477770,1.19162388,3454.1,3453.6,0.7931]
[1735145478827,1.19162388,3454.1,3453.7,1.00512786]
[1735145479027,0.13198594,3454.7,3453.7,1.00512786]
[1735145479265,2.89497,3454.3,3453.7,5.48819677]
[1735145480155,2.89497,3454.3,3453.7,1.48306891]
[1735145480357,2.89479,3454.5,3453.7,1.48306891]
[1735145480560,0.55,3454.6,3453.7,1.48306891]
[1735145480561,2.89486,3454.4,3453.7,1.48306891]
[1735145481087,1.3595,3454.3,3453.7,1.48306891]
[1735145481412,2.89502,3454.2,3453.7,1.48306891]
[1735145481914,0.8095,3454.4,3453.4,8.82]
[1735145482117,2.89546,3453.7,3453.4,8.82]
[1735145482416,0.55,3453.6,3453.3,1.21246126]
[1735145482554,2.89569,3453.4,3453.2,2.00556126]
[1735145482899,2.89569,3453.4,3453.2,1.21246126]
[1735145484192,2.89569,3453.4,3452.9,2.80982615]
[1735145484367,2.89569,3453.4,3452.9,1.36766404]
[1735145486791,2.89554,3453.6,3452.9,1.36766404]
[1735145487096,0.55,3454.3,3453.1,0.7955]
[1735145487397,2.8951,3454.2,3453.2,0.3739335]
[1735145487613,2.89511,3454.1,3453.2,0.3739335]
[1735145487817,0.55,3454.3,3453.3,0.7955]
[1735145488120,2.89512,3454.1,3453.3,0.7955]
[1735145488419,2.89512,3454.1,3453.4,0.41694335]
[1735145492011,2.89529,3453.9,3453.3,0.7955]
[1735145492523,0.55,3453.8,3453.3,0.7955]
[1735145493724,0.55,3453.8,3453.2,0.3739335]
[1735145494019,0.55,3453.6,3453.1,0.7955]
[1735145496535,3.70748,3453.9,3453.1,0.7955]
[1735145496746,2.89511,3454.1,3453.1,0.7955]
[1735145497084,0.55,3454.0,3453.1,0.7955]
[1735145497405,0.55,3454.0,3453.2,0.3739335]
[1735145497842,0.55,3454.2,3453.2,0.3739335]
[1735145497985,0.55,3454.2,3453.1,0.7955]
[1735145498187,2.89564,3453.5,3453.1,0.7955]
[1735145499129,2.89544,3453.8,3453.1,0.7955]
[1735145499628,2.89527,3454.0,3453.1,0.7955]
[1735145499832,0.55,3453.9,3453.1,0.7955]
[1735145500945,0.8197,3454.6,3453.4,2.36927096]
[1735145501087,0.8197,3454.6,3453.6,0.7535]
[1735145501293,2.89488,3454.4,3453.6,0.7535]
[1735145501683,2.89455,3454.8,3453.6,0.7535]
[1735145501944,0.8197,3454.9,3453.8,2.36927096]
[1735145502092,0.8197,3455.3,3454.0,0.7535]
[1735145502286,0.8197,3455.3,3454.2,0.7535]
[1735145503832,2.89444,3454.9,3454.2,0.7535]
[1735145504646,0.8197,3455.3,3454.2,0.7535]
[1735145504873,3.02661594,3454.7,3454.2,0.7535]
[1735145506180,0.13198594,3454.7,3454.2,0.7535]
[1735145506333,0.55,3454.6,3454.0,0.8244]
[1735145506514,0.13198594,3454.7,3454.0,0.8244]
[1735145506762,0.13198594,3454.7,3454.2,0.8244]
[1735145511524,0.13198594,3454.7,3454.2,3.19367096]
[1735145511746,0.13198594,3454.7,3454.3,0.8244]
[1735145511946,0.13198594,3454.7,3454.3,3.8244]
[1735145512636,0.13198594,3454.7,3454.4,0.8244]
[1735145512838,0.13198594,3454.7,3454.5,0.6193671]
[1735145514266,0.13198594,3454.7,3454.6,0.8025]
[1735145515365,0.13198594,3454.7,3454.6,6.17177096]
[1735145518767,0.13198594,3454.7,3454.6,8.67266416]
[1735145519242,0.13198594,3454.7,3454.6,3.3033932]
[1735145520176,0.13198594,3454.7,3454.6,4.93952385]
[1735145520546,0.13198594,3454.7,3454.6,2.5008932]
[1735145520874,0.13198594,3454.7,3454.3,2.62119189]
[1735145520875,0.15793903,3454.7,3454.3,2.01496126]
[1735145521478,0.13198594,3454.7,3454.3,2.01496126]
[1735145521977,0.13198594,3454.7,3454.4,0.59146218]
[1735145522173,0.8188,3454.6,3454.4,0.59146218]
[1735145522480,0.0259531,3454.5,3454.4,0.59146218]
[1735145524660,0.5759531,3454.5,3453.7,0.8025]
[1735145524971,0.5759531,3454.5,3453.5,4.21246126]
[1735145524972,0.8188,3454.1,3453.5,1.21246126]
[1735145525205,0.55,3454.6,3453.5,1.21246126]
[1735145525206,0.55,3453.6,3453.5,1.21246126]
[1735145525378,1.3688,3453.6,3453.5,1.21246126]
[1735145527062,1.3688,3453.6,3452.9,0.56711979]
[1735145527371,3.44563,3453.5,3453.0,0.37388908]
[1735145527579,3.44563,3453.5,3452.8,0.8025]
[1735145528542,0.55,3453.3,3452.4,0.7508]
[1735145528970,0.55,3453.3,3452.8,0.58367833]
[1735145529176,0.55,3453.5,3452.8,0.58367833]
[1735145530774,0.55,3453.5,3452.8,0.6126368]
[1735145530975,0.55,3453.5,3452.9,0.36126368]
[1735145531513,0.8188,3453.6,3453.0,0.7508]
[1735145532739,0.8188,3453.6,3452.8,3.58367833]
[1735145532740,0.55,3453.5,3452.8,3.58367833]
[1735145532922,0.55,3453.5,3452.8,0.58367833]
[1735145534227,1.3593,3453.9,3452.9,0.7508]
[1735145534425,1.3593,3453.9,3453.0,0.67037493]
[1735145535014,0.8093,3453.9,3453.0,0.67037493]
[1735145535328,0.8093,3453.9,3453.1,2.36927096]
[1735145535627,0.13198594,3454.7,3453.6,3.7508]
[1735145536141,0.13198594,3454.7,3453.7,0.02894858]
[1735145536433,0.13198594,3454.7,3453.8,0.61490195]
[1735145536606,0.13198594,3454.7,3453.9,3.0]
[1735145536807,0.13198594,3454.7,3454.6,6.12007096]
[1735145537207,0.13198594,3454.7,3454.6,9.95819996]
[1735145537410,0.13198594,3454.7,3454.6,10.32336165]
[1735145537714,0.0563287,3454.7,3454.6,11.35569782]
[1735145537907,1.19162388,3455.8,3454.8,0.7508]
[1735145538107,168.0,3456.0,3454.8,3.7508]
[1735145538408,168.0,3456.0,3454.8,6.12007096]
[1735145539535,0.55,3455.9,3454.8,6.12007096]
[1735145539697,0.55,3455.9,3454.9,1.66989784]
[1735145540509,0.02590979,3455.8,3454.9,1.66989784]
[1735145541925,0.02590979,3455.8,3455.0,0.7508]
[1735145542830,168.0,3456.0,3455.0,0.7508]
[1735145543199,0.02672364,3455.9,3455.0,0.7508]
[1735145543436,0.02672364,3455.9,3455.1,0.77899688]
[1735145544661,0.57672364,3455.9,3455.1,0.77899688]
[1735145545015,0.7877,3455.8,3455.1,0.77899688]
[1735145545547,0.57675445,3455.7,3455.1,0.77899688]
[1735145547038,0.02675445,3455.7,3455.1,0.77899688]
[1735145547249,0.55,3455.9,3455.2,0.61996947]
[1735145547454,0.02671747,3455.8,3455.2,0.61996947]
[1735145547954,0.02671747,3455.8,3455.3,0.8249]
[1735145548155,168.0,3456.0,3455.3,0.8249]
[1735145548156,168.0,3456.0,3455.7,0.8249]
[1735145548357,168.0,3456.0,3455.7,3.8249]
[1735145548514,168.0,3456.0,3455.8,0.6194171]
[1735145553212,168.0,3456.0,3455.7,0.8249]
[1735145553462,0.55,3455.9,3455.6,0.57827317]
[1735145556764,166.66124978,3456.0,3455.6,2.94754413]
[1735145557063,166.66124978,3456.0,3455.9,6.19417096]
[1735145557064,145.50379472,3456.0,3455.9,6.19417096]
[1735145557224,124.41471976,3456.0,3455.9,11.27890156]
[1735145557424,120.0204553,3456.0,3455.9,46.27890156]
[1735145557667,118.70670739,3456.0,3455.9,45.78809788]
[1735145558254,118.62270739,3456.0,3455.9,5.42787697]
[1735145558430,118.62270739,3456.0,3455.9,7.79714793]
[1735145559367,118.62270739,3456.0,3455.9,14.0969206]
[1735145559575,114.33240938,3456.0,3455.9,14.0969206]
[1735145560447,114.33240938,3456.0,3455.9,7.79714793]
[1735145560757,112.18695354,3456.0,3455.9,7.79714793]
[1735145562175,112.18695354,3456.0,3455.9,75.89960293]
[1735145562475,112.18695354,3456.0,3455.9,75.61795593]
[1735145563544,112.18695354,3456.0,3455.9,66.57599093]
[1735145563751,112.18695354,3456.0,3455.9,48.26122493]
[1735145564242,102.17043051,3456.0,3455.9,50.63049589]
[1735145565242,100.67368137,3456.0,3455.9,50.63049589]
[1735145565830,100.67368137,3456.0,3455.9,94.45049589]
[1735145566237,100.67368137,3456.0,3455.9,92.08122493]
[1735145567190,100.67368137,3456.0,3455.9,92.2282974]
[1735145568848,100.67368137,3456.0,3455.9,57.2282974]
[1735145569255,97.45557625,3456.0,3455.9,57.2282974]
[1735145570322,90.36427626,3456.0,3455.9,16.7642204]
[1735145570651,90.36427626,3456.0,3455.9,59.6837914]
[1735145570878,90.36427626,3456.0,3455.9,58.8158104]
[1735145571575,90.36427626,3456.0,3455.9,57.8693984]
[1735145571765,90.36427626,3456.0,3455.9,48.6493984]
[1735145572184,89.49877627,3456.0,3455.9,48.6493984]
[1735145572392,89.49877627,3456.0,3455.9,57.4693984]
[1735145573187,0.7706,3457.0,3456.0,3.0]
[1735145573394,0.7706,3457.0,3456.5,2.36927096]
[1735145575012,0.7706,3457.0,3456.2,3.0]
[1735145578084,0.7706,3457.0,3456.1,2.36927096]
[1735145582207,0.7706,3457.0,3456.5,2.36927096]
[1735145583338,0.55,3456.7,3456.2,5.49672562]
[1735145584207,0.55,3456.7,3456.2,6.50891259]
[1735145584917,0.55,3456.7,3456.2,4.01218697]
[1735145586321,0.826,3456.8,3456.2,4.01218697]
[1735145589274,0.55,3456.7,3456.2,3.0]
[1735145589445,0.55,3456.7,3456.3,1.00048411]
[1735145591170,0.826,3456.8,3456.3,1.00048411]
[1735145591393,0.55,3457.6,3456.2,3.8102]
[1735145591539,0.7689,3457.8,3456.5,2.36927096]
[1735145591740,0.7689,3457.8,3456.6,0.2369271]
[1735145592576,0.7689,3457.8,3456.6,3.2369271]
[1735145592913,0.7689,3458.0,3456.9,2.36927096]
[1735145594455,0.7689,3458.0,3457.0,5.50155413]
[1735145594969,0.55,3457.9,3457.0,5.50155413]
[1735145595167,0.55,3457.9,3457.1,1.11822324]
[1735145595370,0.7689,3458.0,3457.3,2.36927096]
[1735145595692,0.1716085,3458.1,3457.3,5.36927096]
[1735145597628,0.55,3458.0,3457.4,2.50155413]
[1735145597766,0.55,3457.8,3457.4,2.50155413]
[1735145598993,0.55,3457.8,3457.1,1.08929922]
[1735145599195,1.3206,3457.6,3456.9,1.20347522]
[1735145599403,0.55,3457.6,3457.0,0.7942]
[1735145599710,1.3206,3457.6,3456.9,1.20347522]
[1735145600293,1.3206,3457.6,3456.6,3.45604962]
[1735145600294,1.3206,3457.6,3456.7,1.00207691]
[1735145600465,1.3206,3457.6,3456.7,1.74454112]
[1735145601488,1.3206,3457.6,3456.8,1.00207691]
[1735145602819,0.7706,3457.5,3456.8,1.00207691]
[1735145603112,0.55,3457.2,3456.9,1.00207691]
[1735145603271,0.7706,3457.1,3456.9,1.00207691]
[1735145604256,0.7706,3457.1,3456.8,1.00207691]
[1735145604606,2.89276,3456.9,3456.8,1.00207691]
[1735145604808,3.44276,3456.9,3456.8,1.00207691]
[1735145605337,3.44276,3456.9,3456.7,1.00207691]
[1735145606451,0.55,3457.0,3456.7,1.00207691]
[1735145606608,0.55,3457.0,3456.3,3.7086675]
[1735145606946,0.55,3457.0,3456.4,0.55273594]
[1735145607524,3.4427,3457.0,3456.4,0.55273594]
[1735145607820,3.4427,3457.0,3456.5,1.00207691]
[1735145608215,2.89281,3456.9,3456.5,1.00207691]
[1735145608421,0.7774,3456.7,3456.5,1.00207691]
[1735145608622,0.55,3456.6,3456.5,1.00207691]
[1735145608822,3.44301,3456.6,3456.5,1.00207691]
[1735145609016,0.55,3456.6,3456.5,1.00207691]
[1735145609208,4.22041,3456.6,3456.5,1.00207691]
[1735145609406,4.931732,3456.6,3456.5,1.00207691]
[1735145609806,4.931732,3456.6,3456.3,1.00207691]
[1735145610015,4.22058,3456.4,3456.3,1.00207691]
[1735145611654,2.89376,3455.8,3455.5,1.00207691]
[1735145611826,1.3274,3455.6,3455.5,1.00207691]
[1735145612517,0.55,3455.5,3455.2,1.00207691]
[1735145612849,0.7774,3455.6,3455.2,1.00207691]
[1735145613053,0.7774,3455.6,3455.3,0.22055521]
[1735145613256,1.3274,3455.9,3455.3,0.22055521]
[1735145613979,1.3274,3455.9,3454.9,3.7086675]
[1735145614511,4.22103,3455.9,3454.9,3.7086675]
[1735145615715,2.89386,3455.6,3454.9,2.50519228]
[1735145615959,0.55,3455.3,3454.9,2.50519228]
[1735145616148,2.89435,3455.0,3454.9,2.50519228]
[1735145616456,4.69674394,3455.0,3454.9,2.50519228]
[1735145616840,4.22175,3455.0,3454.9,2.50519228]
[1735145617163,0.55,3454.7,3454.4,1.20347522]
[1735145618724,0.55,3454.7,3453.6,2.36927096]
[1735145619064,0.55,3454.7,3453.7,3.0]
[1735145619276,0.55,3454.9,3453.7,3.0289515]
[1735145619574,3.44448,3454.9,3453.7,3.0289515]
[1735145619747,3.44448,3454.9,3453.9,0.61712225]
[1735145621193,2.44448,3454.9,3453.9,0.61712225]
[1735145622143,2.89455,3454.8,3453.9,0.61712225]
[1735145622488,0.57953794,3455.2,3453.9,0.61712225]
[1735145622489,2.89469,3454.6,3453.9,0.61712225]
[1735145622693,0.57953794,3455.2,3453.7,3.0]
[1735145622694,0.8074,3454.5,3453.7,3.0]
[1735145627067,3.70172,3455.1,3453.7,3.0]
[1735145627308,3.70172,3455.1,3453.8,0.80195016]
[1735145627483,3.70172,3455.1,3453.8,0.773]
[1735145627804,3.70172,3455.1,3453.8,0.80195017]
[1735145628103,3.70172,3455.1,3453.9,0.61712211]
[1735145628404,3.70172,3455.1,3454.0,0.7818]
[1735145628795,2.89377,3455.7,3454.5,0.7818]
[1735145629403,0.8074,3455.6,3454.5,0.7818]
[1735145629599,2.89406,3455.4,3454.5,0.7818]
[1735145629800,2.89406,3455.4,3454.6,0.3151071]
[1735145630836,0.8074,3455.6,3454.6,0.3151071]
[1735145631894,2.89396,3455.5,3454.6,0.3151071]
[1735145633545,0.8074,3455.6,3454.6,0.3151071]
[1735145634745,2.89408,3455.4,3454.6,0.3151071]
[1735145634944,2.89408,3455.4,3454.7,0.64661781]
[1735145636524,2.89417,3455.3,3454.7,0.64661781]
[1735145636725,2.89424,3455.2,3454.7,0.64661781]
[1735145636924,2.89424,3455.2,3454.5,0.7818]
[1735145637165,2.89424,3455.2,3453.9,1.19425302]
[1735145637166,0.8265,3455.1,3454.1,0.7736]
[1735145637746,2.89476,3454.6,3454.1,0.7736]
[1735145637899,2.89476,3454.6,3453.9,0.61712211]
[1735145638101,2.8948,3454.5,3453.9,0.61712211]
[1735145638703,2.89502,3454.3,3453.8,0.7736]
[1735145638907,2.89504,3454.2,3453.8,0.7736]
[1735145639103,0.8265,3454.5,3453.4,0.7736]
[1735145639104,2.8952,3454.0,3453.4,0.7736]
[1735145639312,3.72132,3454.5,3453.4,0.7736]
[1735145639313,2.89537,3453.8,3453.4,0.7736]
[1735145639513,2.8952,3454.0,3453.4,0.7736]
[1735145640111,2.8952,3454.0,3452.7,1.20347522]
[1735145640112,2.89571,3453.4,3452.7,1.20347522]
[1735145640311,2.89578,3453.3,3452.7,1.20347522]
[1735145640947,2.89578,3453.3,3452.5,0.7736]
[1735145642171,0.8265,3453.9,3452.5,3.14287096]
[1735145642377,0.55,3453.8,3452.7,0.7736]
[1735145642582,0.8265,3453.9,3452.7,0.7736]
[1735145642875,0.8265,3453.9,3452.9,2.36927096]
[1735145643587,2.89512,3454.1,3453.0,0.7736]
[1735145643935,2.89523,3454.0,3453.0,0.7736]
[1735145644179,2.89523,3454.0,3453.1,0.3142871]
[1735145647068,0.8265,3454.3,3453.1,0.3142871]
[1735145647251,0.8265,3454.3,3453.2,0.7736]
[1735145647451,3.44486,3454.4,3453.2,0.7736]
[1735145647772,0.8265,3454.6,3453.2,0.7736]
[1735145647976,2.89477,3454.5,3453.3,1.18238871]
[1735145648351,2.89487,3454.4,3453.3,1.18238871]
[1735145648773,2.89487,3454.4,3453.3,2.77805967]
[1735145648970,2.89487,3454.4,3453.5,0.7736]
[1735145650982,2.89466,3454.7,3453.5,0.7736]
[1735145651285,2.89429,3455.1,3453.8,0.8087]
[1735145651286,2.89434,3455.1,3453.8,0.8087]
[1735145651492,0.77,3455.6,3454.1,2.36927096]
[1735145651653,2.89406,3455.4,3454.3,0.8087]
[1735145652673,0.77,3455.6,3454.3,0.8087]
[1735145652674,2.89386,3455.6,3454.3,0.8087]
[1735145652880,2.89386,3455.6,3454.5,0.8087]
[1735145654685,0.55,3456.2,3454.9,2.36927096]
[1735145654888,2.89362,3455.9,3455.0,0.8087]
[1735145655086,2.89362,3455.9,3455.0,1.1264971]
[1735145657014,2.89341,3456.2,3455.1,0.8087]
[1735145657168,0.77,3456.7,3455.1,0.8087]
[1735145657371,2.89334,3456.3,3455.1,0.8087]
[1735145657872,2.89344,3456.1,3455.1,0.8087]
[1735145658071,2.89344,3456.1,3455.2,0.64957681]
[1735145661505,0.56930613,3456.7,3455.2,0.64957681]
[1735145661707,0.55,3456.9,3455.3,0.8087]
[1735145661908,2.89318,3456.5,3455.3,0.8087]
[1735145662286,2.89319,3456.4,3455.3,0.8087]
[1735145662598,0.77,3456.3,3455.4,0.14582768]
[1735145662998,2.89345,3456.1,3455.4,0.14582768]
[1735145663389,3.66327,3456.3,3455.4,0.14582768]
[1735145665116,2.89335,3456.2,3455.4,0.14582768]
[1735145665288,2.89335,3456.2,3455.5,0.16041045]
[1735145666182,0.77,3456.3,3455.5,0.16041045]
[1735145666395,3.66326,3456.3,3455.5,0.16041045]
[1735145666597,2.89303,3456.6,3455.6,0.8085]
[1735145666783,2.89311,3456.5,3455.6,0.8085]
[1735145666991,0.42786014,3456.5,3455.6,0.8085]
[1735145667188,2.89353,3456.0,3455.6,0.8085]
[1735145668179,2.89378,3455.7,3455.1,0.8085]
[1735145672728,2.89385,3455.6,3455.1,0.8085]
[1735145672902,2.89403,3455.4,3455.1,0.8085]
[1735145673105,2.89387,3455.6,3455.1,0.8085]